{"text_format":"3","workbook":"xlsx","n_sheets":1,"sheets":["Blodtrykk og glukose"],"not_rendered":{"defined_names":9},"read":"whole","date_system":"1900"}

{"sheet":"Blodtrykk og glukose","index":0,"n_rows":13,"n_cols":11,"rows_kept":13,"merged":[[0,1,4,3],[0,4,0,9],[1,4,1,6],[1,7,1,9]]}
[null,"Blodtrykks- og glukosemåler",null,null,"Tilpass skalaverdiene i celle E2 til J5 under."]
[{"$nulls":4},"BLODTRYKK",null,null,"GLUKOSESKALA"]
[{"$nulls":4},120,"SYSTOLISK",140,70,100,150]
[{"$nulls":4},80,"DIASTOLISK",90,"LAV","NORMAL","HØY"]
[{"$nulls":4},"MÅLTRYKK",null,"RING LEGE"]
[null,"Dato","Klokkeslett","Hendelse","Systolisk","Diastolisk","Puls","Glukose","Nivå","Status","Notater"]
[null,{"$f":"TODAY()","v":"2022-08-08"},"06:00:00","Våkne",129,79,72,55,{"$f":"BlodtrykkOgGlukose[[#This Row],[Glukose]]","v":55},{"$f":"IFERROR(IF(BlodtrykkOgGlukose[[#This Row],[Nivå]]=0,\"\",IF(BlodtrykkOgGlukose[[#This Row],[Nivå]]<=GLav,\"Lav\",IF(AND(BlodtrykkOgGlukose[[#This Row],[Nivå]]>GLav,BlodtrykkOgGlukose[[#This Row],[Nivå]]<GHøy),\"Normal\",\"Høy\"))), \"\")","v":"Lav"}]
[null,{"$f":"TODAY()","v":"2022-08-08"},"07:00:00","Før måltid",120,80,74,70,{"$f":"BlodtrykkOgGlukose[[#This Row],[Glukose]]","v":70},{"$f":"IFERROR(IF(BlodtrykkOgGlukose[[#This Row],[Nivå]]=0,\"\",IF(BlodtrykkOgGlukose[[#This Row],[Nivå]]<=GLav,\"Lav\",IF(AND(BlodtrykkOgGlukose[[#This Row],[Nivå]]>GLav,BlodtrykkOgGlukose[[#This Row],[Nivå]]<GHøy),\"Normal\",\"Høy\"))), \"\")","v":"Lav"}]
[null,"2022-08-08","09:00:00","Etter måltid",133,80,75,75,{"$f":"BlodtrykkOgGlukose[[#This Row],[Glukose]]","v":75},{"$f":"IFERROR(IF(BlodtrykkOgGlukose[[#This Row],[Nivå]]=0,\"\",IF(BlodtrykkOgGlukose[[#This Row],[Nivå]]<=GLav,\"Lav\",IF(AND(BlodtrykkOgGlukose[[#This Row],[Nivå]]>GLav,BlodtrykkOgGlukose[[#This Row],[Nivå]]<GHøy),\"Normal\",\"Høy\"))), \"\")","v":"Normal"}]
[null,"2022-08-08","10:00:00","Bare BT",143,91,75,190,{"$f":"BlodtrykkOgGlukose[[#This Row],[Glukose]]","v":190},{"$f":"IFERROR(IF(BlodtrykkOgGlukose[[#This Row],[Nivå]]=0,\"\",IF(BlodtrykkOgGlukose[[#This Row],[Nivå]]<=GLav,\"Lav\",IF(AND(BlodtrykkOgGlukose[[#This Row],[Nivå]]>GLav,BlodtrykkOgGlukose[[#This Row],[Nivå]]<GHøy),\"Normal\",\"Høy\"))), \"\")","v":"Høy"}]
[null,"2022-08-08","12:00:00","Før måltid",141,84,70,140,{"$f":"BlodtrykkOgGlukose[[#This Row],[Glukose]]","v":140},{"$f":"IFERROR(IF(BlodtrykkOgGlukose[[#This Row],[Nivå]]=0,\"\",IF(BlodtrykkOgGlukose[[#This Row],[Nivå]]<=GLav,\"Lav\",IF(AND(BlodtrykkOgGlukose[[#This Row],[Nivå]]>GLav,BlodtrykkOgGlukose[[#This Row],[Nivå]]<GHøy),\"Normal\",\"Høy\"))), \"\")","v":"Normal"}]
[null,{"$f":"TODAY()","v":"2022-08-08"},"15:00:00","Etter måltid",132,80,68,90,{"$f":"BlodtrykkOgGlukose[[#This Row],[Glukose]]","v":90},{"$f":"IFERROR(IF(BlodtrykkOgGlukose[[#This Row],[Nivå]]=0,\"\",IF(BlodtrykkOgGlukose[[#This Row],[Nivå]]<=GLav,\"Lav\",IF(AND(BlodtrykkOgGlukose[[#This Row],[Nivå]]>GLav,BlodtrykkOgGlukose[[#This Row],[Nivå]]<GHøy),\"Normal\",\"Høy\"))), \"\")","v":"Normal"},"Tok BT-medisin sammen med måltid"]
[null,"Gjennomsnitt",null,null,{"$f":"SUBTOTAL(101,BlodtrykkOgGlukose[Systolisk])","v":133},{"$f":"SUBTOTAL(101,BlodtrykkOgGlukose[Diastolisk])","v":{"v":82.33333333333333,"d":"82"}},{"$f":"SUBTOTAL(101,BlodtrykkOgGlukose[Puls])","v":{"v":72.33333333333333,"d":"72"}},{"$f":"SUBTOTAL(101,BlodtrykkOgGlukose[Glukose])","v":{"v":103.33333333333333,"d":"103"}}]